Cogmind - Beta 13 @@@ ROGUE MODE // 2024.05.27 @ 10:25:33 Player: Bace Troncons Result: Destroyed by NQ-QIM(R) with Subdweller Machine Gun Performance ------------- Evolutions (0) 0 Regions Visited (2) 400 Robots Destroyed (33) 165 Value Destroyed (895) 895 Prototype IDs (0) 0 Alien Tech Used (0) 0 Bonus (0) 0 TOTAL SCORE: 1460 Bonus ------- None Cogmind --------- Core Integrity 0/250 Matter 227/300 Energy 96/100 System Corruption 0% Temperature Cool (0) Movement Rolling (110) Location -10/Subcaves Parts ------- > --- POWER (1) -------- (None) > --- PROPULSION (2) --- Subdweller Monowheel > --- UTILITY (2) ------ (None) > --- WEAPON (2) ------- Barrage Gun Battle Cannon > --- INVENTORY (5) ---- Sensor Array Improved Light Cannon Subdweller Shrapnel Launcher Mining Claw Scrap Shield Fragment (50) Peak State ------------ > --- POWER ------------ Light Nuclear Core > --- PROPULSION ------- Light Treads Spiked Treads > --- UTILITY ---------- Improved Terrain Scanner Weapon Shielding > --- WEAPON ----------- Improved Light Cannon Battle Cannon > --- INVENTORY -------- Light Ion Engine Sensor Array Improved Light Cannon Improved Light Cannon Mining Claw [Rating: 14] Favorites ----------- Power Light Nuclear Core Engine Light Ion Engine Power Core Light Nuclear Core Propulsion Light Treads Treads Light Treads Wheel Wheel Utility Weapon Shielding Device Improved Terrain Scanner Storage Small Storage Unit Protection Weapon Shielding Weapon Improved Light Cannon Energy Gun EM Pulse Gun Ballistic Gun Barrage Gun Ballistic Cannon Improved Light Cannon Launcher Subdweller Shrapnel Launcher Slashing Weapon Mining Claw Build | -11 -10 -10 ------- Run | Yrd Mat Sub Slots Evolved . | . . . Power . | . . . Propulsion . | . . . Utility . | . . . Weapon . | . . . Parts Attached 44 | 7 14 23 Power 6 | 2 3 1 Engine 4 | 2 1 1 Core 2 | . 2 . Reactor . | . . . Propulsion 8 | 2 2 4 Treads 5 | 2 2 1 Leg . | . . . Wheel 3 | . . 3 Hover . | . . . Flight . | . . . Utility 7 | 1 4 2 Device 3 | . 2 1 Storage 1 | 1 . . Processor . | . . . Hackware . | . . . Protection 3 | . 2 1 Artifact . | . . . Weapon 23 | 2 5 16 Energy Gun 2 | 2 . . Energy Cannon . | . . . Ballistic Gun 1 | . . 1 Ballistic Cannon 13 | . 4 9 Launcher 1 | . . 1 Special Weapon . | . . . Impact Weapon . | . . . Slashing Weapon 6 | . 1 5 Piercing Weapon . | . . . Special Melee Weapon . | . . . Unidentified Prototypes . | . . . Parts Lost 10 | . . 10 Power 2 | . . 2 Propulsion 4 | . . 4 Utility 3 | . . 3 Weapon 1 | . . 1 Highest Loss Streak 2 | . . 2 To Critical Strikes . | . . . Average Slot Usage (%) 91 | . 98 84 Engine 5 | . 4 6 Core 8 | . 8 7 Treads 21 | . 27 15 Wheel 2 | . . 5 Device 10 | . 14 8 Protection 12 | . 12 12 Ballistic Gun 2 | . . 4 Ballistic Cannon 22 | . 25 18 Slashing Weapon 2 | . . 5 Naked Turns . | . . . Heaviest Build 29 | 14 15 29 Greatest Support 40 | 40 40 40 Greatest Overweight (x) 9 | 2 . 9 Average Overweight (x) . | . . . Largest Inventory Capacity 8 | 8 8 5 Average Capacity 5 | 7 5 5 Most Carried 5 | 4 5 5 Average Carried 4 | 1 4 4 Final Capacity 8 | 8 5 5 Final Carried 5 | 4 5 5 Class Distribution -------------------- 100% | Mutant Dominant Class ---------------- Mutant | -10/Materials Mutant | -10/Subcaves Resources | -11 -10 -10 ----------- Run | Yrd Mat Sub Matter Collected 1429 | 210 603 616 Remotely . | . . . Salvage Created 670 | . 437 233 Parts 46 | . 30 16 Haulers Intercepted 2 | . 2 . Recyclers Shooed . | . . . Parts Field Recycled . | . . . Retrieved Matter . | . . . Parts Self-Destructed 16 | . . 16 Prevented . | . . . Kills | -11 -10 -10 ------- Run | Yrd Mat Sub Combat Hostiles Destroyed 27 | . 12 15 Cannons 27 | . 12 15 Classes Destroyed 8 | . 6 2 Worker 1 | . 1 . Tunneler 1 | . 1 . Hauler 2 | . 2 . Watcher 2 | . 2 . Swarmer 7 | . 3 4 Grunt 10 | . 9 1 Sentry 1 | . . 1 Subdweller 9 | . . 9 Best Kill Streak 4 | . 4 4 Combat Bots Only 4 | . 3 4 Max Kills in Single Turn 1 | . 1 1 Gunslinging . | . . . Exploded . | . . . Melee . | . . . Uniques/NPCs Destroyed . | . . . Combat | -11 -10 -10 -------- Run | Yrd Mat Sub Hostile Shots Fired 164 | . 55 109 Missed 43 | . 16 27 Damage Taken 1860 | . 410 1450 Core 262 | . 73 189 Absorbed by Shields . | . . . Redirected to Shielding 100 | . 48 52 Regen/Repaired (Parts) 79 | . 79 . Core Remaining (%) 100 | 100 . . Volleys Fired 117 | . 55 62 Largest 2 | . 2 2 Hottest 78 | . 78 78 Shots Fired 224 | . 106 118 Gun 21 | . 4 17 Cannon 203 | . 102 101 Launcher . | . . . Special . | . . . Kinetic 220 | . 102 118 Thermal . | . . . Explosive . | . . . Electromagnetic 4 | . 4 . Robot Hit Streak 18 | . 4 18 Robot Miss Streak 5 | . 5 2 Penetration Max . | . . . Secondary Targets . | . . . Shots Hit Robots 136 | . 51 85 Core Hits 44 | . 20 24 Critical Kills . | . . . Critical Parts Destroyed . | . . . Critical Strikes 8 | . 2 6 Blast 8 | . 2 6 Melee Attacks 29 | . 5 24 Impact . | . . . Slashing 29 | . 5 24 Piercing . | . . . Sneak Attacks . | . . . Combat Hostiles . | . . . Follow-up Attacks . | . . . Damage Inflicted 2640 | . 881 1759 Guns 339 | . 42 297 Cannons 2294 | . 832 1462 Explosions . | . . . Melee . | . . . Ramming 7 | . 7 . Kinetic 2591 | . 832 1759 Thermal . | . . . Explosive . | . . . Electromagnetic 42 | . 42 . Impact . | . . . Slashing . | . . . Piercing . | . . . Highest Corruption . | . . . Average Corruption . | . . . Corruption Purged . | . . . Corruption Blocked . | . . . Overload Shots . | . . . Overflow Damage 28 | . 25 3 Projectiles 28 | . 25 3 Explosions . | . . . Melee . | . . . Knockbacks 27 | . 17 10 Impact . | . . . Kinetic 25 | . 15 10 Secondary 2 | . 2 . Self-Inflicted Damage . | . . . Shots . | . . . Rammed 2 | . 2 . Targets Rammed 2 | . 2 . Kicked . | . . . Crushed . | . . . Highest Temperature 195 | . 195 . Average Temperature 53 | . 53 . Received Heat Transfer 369 | . 141 228 Siege Activations . | . . . Robots Corrupted . | . . . Combat Hostiles . | . . . Parts Fried . | . . . Impact Corruptions . | . . . Robots Melted . | . . . Combat Hostiles . | . . . Parts Melted 1 | . . 1 Heat Transferred . | . . . Parts Sabotaged . | . . . Parts Stolen . | . . . Parts Stripped . | . . . Power Chain Reactions . | . . . Alert | -11 -10 -10 ------- Run | Yrd Mat Sub Peak Influence 176 | . 176 . Initial . | . . . Average 73 | . 75 . Maximum Alert Level . | . . . Low Security (%) 100 | 100 100 . Level 1 . | . . . Level 2 . | . . . Level 3 . | . . . Level 4 . | . . . Level 5 . | . . . High Security . | . . . Max Security . | . . . Squads Dispatched 1 | . 1 . Investigation 1 | . 1 . Extermination . | . . . Reinforcement . | . . . Assault . | . . . Garrison . | . . . Intercept . | . . . Searches Triggered . | . . . Construction Impeded . | . . . Haulers Reinforced . | . . . Active Scanning Responses . | . . . Cargo Convoy Interrupts . | . . . Stealth | -11 -10 -10 --------- Run | Yrd Mat Sub Distress Signals 1 | . 1 . Communications Jammed . | . . . Distress Signals . | . . . Times Spotted 46 | . 23 23 Peak Tracking Total 6 | . 5 6 Tactical Retreats 3 | . 1 2 Traps | -11 -10 -10 ------- Run | Yrd Mat Sub Traps Triggered 3 | . 2 1 Indirectly . | . . . Trap Hack Attempts . | . . . Triggered . | . . . Disarmed . | . . . Reprogrammed . | . . . Reused . | . . . Traps Extracted . | . . . Installed . | . . . Triggered . | . . . Machines | -11 -10 -10 ---------- Run | Yrd Mat Sub Machines Disabled 1 | . 1 . Max in Single Turn 1 | . 1 . Machines Repaired . | . . . Machines Dismantled . | . . . Machines Sabotaged . | . . . Overloaded Fab Kills . | . . . Hacking | -11 -10 -10 --------- Run | Yrd Mat Sub Machines Accessed 4 | . 4 . Terminals 3 | . 3 . Fabricators . | . . . Repair Stations 1 | . 1 . Recycling Units . | . . . Scanalyzers . | . . . Garrison Access . | . . . Total Hacks 14 | . 14 . Successful 8 | . 8 . Failed 6 | . 6 . Catastrophic . | . . . Database Lockouts . | . . . Manual 10 | . 10 . Terminals 10 | . 10 . Fabricators . | . . . Repair Stations 4 | . 4 . Recycling Units . | . . . Scanalyzers . | . . . Garrison Access . | . . . Terminal Hacks 4 | . 4 . Locate Traps 3 | . 3 . Recall Investigation 1 | . 1 . Fabricator Hacks . | . . . Repair Station Hacks 4 | . 4 . Scan Component 2 | . 2 . Repair 2 | . 2 . Recycling Unit Hacks . | . . . Scanalyzer . | . . . Garrison Access Hacks . | . . . Unauthorized Hacks . | . . . Terminals . | . . . Fabricators . | . . . Repair Stations . | . . . Recycling Units . | . . . Scanalyzers . | . . . Garrison Access . | . . . Data Cores Recovered . | . . . Used . | . . . Hacking Detections 4 | . 4 . Full Trace Events . | . . . Feedback Events . | . . . Feedback Blocked . | . . . Robot Schematics Acquired . | . . . Robots Built . | . . . Authchips . | . . . Time . | . . . Total Robot Build Rating . | . . . Part Schematics Acquired . | . . . Parts Built . | . . . Authchips . | . . . Time . | . . . Total Part Build Rating . | . . . Parts Repaired 2 | . 2 . Time 64 | . 64 . Parts Recycled . | . . . Recycled Matter . | . . . Retrieved Matter . | . . . Retrieved Components . | . . . Parts Scanalyzed . | . . . Part Schematics Acquired . | . . . Parts Damaged . | . . . Bothacking | -11 -10 -10 ------------ Run | Yrd Mat Sub Used RIF Installer . | . . . Robots Hacked . | . . . Non-combat . | . . . Combat . | . . . Robot Hacks Applied . | . . . Relay Couplers Released . | . . . Fabnet Peak Effective % . | . . . Robots Rewired . | . . . Allies Hacked . | . . . Hacks Repelled . | . . . Allies | -11 -10 -10 -------- Run | Yrd Mat Sub Total Allies . | . . . Largest Group . | . . . Highest-Rated Group . | . . . Highest-Rated Ally . | . . . Total Orders . | . . . Ally Attacks . | . . . Total Damage . | . . . Kills . | . . . Allies Corrupted . | . . . Allies Melted . | . . . Intel | -11 -10 -10 ------- Run | Yrd Mat Sub Robot Analysis Total . | . . . Derelict Logs Recovered 2 | . . 2 Drone Launches . | . . . Drone Recoveries . | . . . Exploration | -11 -10 -10 ------------- Run | Yrd Mat Sub Turns Passed 3826 | 67 1840 1919 Spaces Moved 2016 | 36 924 1056 Core 23 | 4 . 19 Treads 1462 | 32 924 506 Legs . | . . . Wheels 531 | . . 531 Hover . | . . . Flight . | . . . Fastest Speed 50 | 50 160 80 Average Speed 148 | 153 160 137 Slowest Speed 500 | 160 160 500 Overloaded Moves . | . . . Propulsion Burnouts . | . . . Robots Hopped . | . . . Cave-ins Triggered . | . . . Exploration Rate (%) 51 | 3 100 51 Regions Visited 2 Branch Regions 1 Pre-discovered Areas 1 | . . 1 Known Exits Taken . | . . . Unknown Exits Taken 2 | 1 1 . Scrap Searched 16 | . . 16 Spaces Dug 5 | . 2 3 Terrain Destroyed 6 | . 2 4 Melee 3 | . 2 1 Projectile 3 | . . 3 AOE . | . . . Terrain Rammed . | . . . Walls Destroyed . | . . . Machines Disabled . | . . . Actions | -11 -10 -10 --------- Run | Yrd Mat Sub Total 2565 | 45 1170 1350 Wait 318 | . 146 172 Move 2014 | 35 923 1056 Hop . | . . . Pick Up 16 | 2 10 4 Fast Attach 21 | 6 10 5 Attach 4 | . 1 3 Detach 3 | 1 1 1 Swap 19 | 1 3 15 Drop 18 | . 14 4 Fire 117 | . 55 62 Melee 29 | . 5 24 Ram . | . . . Kick . | . . . Crush 2 | . 2 . Escape Stasis . | . . . Rewire . | . . . Trap . | . . . Miscellaneous 4 | . . 4 Route ------- -11/Scrapyard -10/Materials (discovered 6 exits: [*Mat x3] / [*Min x2] / *Sub) -10/Subcaves (discovered 2 exits: [*Mat] / [*Rec]) History --------- Turn | Location | Event 41 | -11/Scrapyard | Discovered new exit (range 15) 68 | -11/Scrapyard | Entered Materials 265 | -10/Materials | Discovered new exit (range 3) 316 | -10/Materials | Build established: Mutant 490 | -10/Materials | Discovered new exit (range 14) 723 | -10/Materials | Discovered new exit (range 10) 730 | -10/Materials | Discovered new exit (range 15) 797 | -10/Materials | Repaired Lgt. Nuclear Core 1218 | -10/Materials | Discovered new exit (range 10) 1483 | -10/Materials | Repaired Lgt. Treads 1896 | -10/Materials | Discovered new exit (range 9) 1908 | -10/Materials | Entered Subcaves 2051 | -10/Subcaves | Discovered new exit (range 11) 2341 | -10/Subcaves | Ambushed by Subdweller buried in earth 2443 | -10/Subcaves | Disturbed a concealed Subdweller 2616 | -10/Subcaves | Shifting Twisted Machinery released Flamer 2945 | -10/Subcaves | Discovered new exit (range 8) 2998 | -10/Subcaves | Visited Clippyterm 2999 | -10/Subcaves | Core integrity fell below 50% 3235 | -10/Subcaves | Shifting Twisted Machinery released Sub. Laser 3261 | -10/Subcaves | A swath of the cavern ceiling suddenly collapsed 3414 | -10/Subcaves | Learned 4 Materials zone layouts 3462 | -10/Subcaves | Disturbed a concealed Subdweller 3488 | -10/Subcaves | Core integrity fell below 20% 3545 | -10/Subcaves | Learned location of Zion (-7) 3808 | -10/Subcaves | A Subdweller sparked back to life 3808 | -10/Subcaves | A Subdweller sparked back to life 3808 | -10/Subcaves | A Subdweller sparked back to life 3827 | -10/Subcaves | Destroyed by NQ-QIM(R) with Subdweller Machine Gun Last Messages --------------- 03566_ Acquired Battle Cannon. 03634_ JC-B2Y(u) tweaks Twisted Machinery. 03649_ JC-B2Y(u) builds Twisted Machinery. 03808_ J6-7VY(R) creaks and sparks as it begins to move. 03808_ 1S-IOE(R) creaks and sparks as it begins to move. 03808_ NQ-QIM(R) creaks and sparks as it begins to move. 03809_ Lgt. Ion Engine destroyed. 03810_ 1S-IOE(R) Disposable Heat Sink blasted off. 03814_ 1S-IOE(R) affixes Scrap Shield Fragment to Scrap Shield. 03815_ NQ-QIM(R) Sub. Power Source blasted off. 03818_ Scrap Shield destroyed. 03820_ NQ-QIM(R) affixes Scrap Shield Fragment to Scrap Shield. 03824_ NQ-QIM(R) Disposable Heat Sink blasted off. Map ----- +----------------------------------------------------+ | | | | | | | | | | | | | | | ?????????????????????????????????????????????????? | | ?????????????????????????????????????????????????? | | ?????????????????????????????????????????????????? | | ?????????????????????????????????????????????????? | | ?????????????????????????????????????????????????? | | ?????????????????????????????????????????????????? | | ?????????????????????????????????????????????????? | | ?????????????????????????????????????????????????? | | ?????????????????????????????????????????????????? | | ?????????????????????????????????????????????????? | | ??????????????????#######????????????????????????? | | ??????????????????# "< #????????????????????????? | | ??????????????????# #????????????????????????? | | ??????????????????# < " #????????????????????????? | | ??######?????###### %##???????????????????????? | | ??# ###???# < R#*######??????????????????? | | ??# ##?## R !=R% ##?????????????????? | | ??# ## #?# [ #?????????????????? | | ?## # ### # ###@######?????????????????? | | ?# # ## ### #####??????????????????????? | | ## ## #?#####???????????????????? | | # ### #?# #???????????????????? | | ### #####?# ##???????????????????? | | # # ### ##?????# #????????????????????? | | ######?# ###?????## #????????????????????? | | #?????# !##### #??????## #????????????????????? | | ##???##* #######?????## #????????????????????? | | #???# [ ## ###???### | ##????????????????????? | | #???# * ##?## ##?????????????????????? | | ##?##! ### ##??????????????????????? | | " ### ## ####???????????????????????? | | ### #??????????????????????????? | | ### ##????###??????????????????? | | * ## ### ###### #??????????????????? | | #?## #??????????????????? | | #??# ####???????????????? | | #??# ##### #???????????????? | | #?# ##??# #??????????????? | | ## #?# #???## ## ]"????????? | | ### #????# ### "????????? | | ##?# #### ###### ##?# ????????? | | ##??#### #?# ## ##?###" ????????? | | ##??????? ##??# # ##???#### ????????? | +----------------------------------------------------+ Best States ------------- Heat Dissipation 25 Energy Generation 14 Energy Capacity 250 Matter Stores 300 Matter Capacity 300 Sight Range 16 Robot Scan Range 14 Terrain Scan Range 16 Terrain Scan Density 10 Armor Coverage 800 Weapon Shielding 33 Evasion (%) 44 Recoil Reduction 2 Item Schematics ----------------- None Robot Schematics ------------------ None Fabricated ------------ Nothing Alien Tech Used ----------------- None Achievements -------------- None Challenges ------------ None Game ------ Seed LobotomyLobotomySegregator Manual? 0 Play Time 00:27:43 Cumulative 86.6 hours Start 2024.05.27 @ 10:01:58 End 2024.05.27 @ 10:25:33 Sessions 1 Manual Loads 0 Difficulty Rogue Special Mode None Game No. 141 Rogue 141 Adventurer 0 Explorer 0 Win Type - Total 1 Types 1/0/0/0/0/0/0/0/0 Lore% 40 Gallery% 44 Achievement% 32 Wizard Run 0 Options --------- Layout 1 ASCII 0 Keyboard 1 Movement Numpad Keybinds 0 Fullscreen 1 Font 24/Smallcaps Map View 50x35 Zoom Use 0% Tactical HUD 1 Map Filters NONE Filters NONE Steam 1 RUN: f9e195fa-6f3a-4b15-a3d3-1c63951e90ec